fUSD/lending_fUSD_20260530
["ID","MTS","AMOUNT","RATE_DAILY","PERIOD"]
[423449093,1780126569000,-928.82,0.00035315,120]
[423449106,1780126569000,-211.7676497,0.00035418,120]
[423449102,1780126569000,-234.375,0.00035418,120]
[423449104,1780126569000,-261.8598649,0.00035418,120]
[423449105,1780126569000,-771.6446479,0.00035418,120]
[423449103,1780126569000,-164.1855473,0.00035418,120]
[423449108,1780126569000,-562.8661871,0.00035418,120]
[423449101,1780126569000,-409.2834307,0.00035418,120]
[423449099,1780126569000,-614.3002122,0.00035418,120]
[423449098,1780126569000,-500.0,0.00035418,120]
[423449096,1780126569000,-500.0,0.00035418,120]
[423449097,1780126569000,-189.84375,0.00035418,120]
[423449107,1780126569000,-286.4105849,0.00035418,120]
[423449100,1780126569000,-234.375,0.00035418,120]
[423449119,1780126570000,-500.0,0.00035418,120]
[423449120,1780126570000,-500.0,0.00035418,120]
[423449118,1780126570000,-500.0,0.00035418,120]
[423449117,1780126570000,-500.0,0.00035418,120]
[423449116,1780126570000,-500.0,0.00035418,120]
[423449111,1780126570000,-500.0,0.00035418,120]
[423449115,1780126570000,-500.0,0.00035418,120]
[423449113,1780126570000,-500.0,0.00035418,120]
[423449110,1780126570000,-500.0,0.00035418,120]
[423449112,1780126570000,-234.375,0.00035418,120]
[423449109,1780126570000,-234.375,0.00035418,120]
[423449114,1780126570000,-500.0,0.00035418,120]
[423449122,1780126570000,-708.0203938,0.00035418,120]
[423449121,1780126570000,-627.9791947,0.00035418,120]
[423449123,1780126570000,-762.6490515,0.00035418,120]
[423449124,1780126570000,-283.8921622,0.00035418,120]
[423449134,1780126570000,-213.8853685,0.00035418,120]
[423449135,1780126570000,-500.0,0.00035418,120]
[423449133,1780126570000,-500.0,0.00035418,120]
[423449132,1780126570000,-500.0,0.00035418,120]
[423449130,1780126570000,-441.3504141,0.00035418,120]
[423449136,1780126570000,-500.0,0.00035418,120]
[423449129,1780126570000,-500.0,0.00035418,120]
[423449128,1780126570000,-234.375,0.00035418,120]
[423449126,1780126570000,-165.5031005,0.00035418,120]
[423449127,1780126570000,-284.0329378,0.00035418,120]
[423449125,1780126570000,-234.375,0.00035418,120]
[423449131,1780126570000,-234.375,0.00035418,120]
[423449147,1780126571000,-500.0,0.00035418,120]
[423449153,1780126571000,-500.0,0.00035418,120]
[423449151,1780126571000,-500.0,0.00035418,120]
[423449148,1780126571000,-500.0,0.00035418,120]
[423449150,1780126571000,-500.0,0.00035418,120]
[423449149,1780126571000,-662.5816611,0.00035418,120]
[423449146,1780126571000,-500.0,0.00035418,120]
[423449139,1780126571000,-500.0,0.00035418,120]
[423449145,1780126571000,-500.0,0.00035418,120]
[423449142,1780126571000,-500.0,0.00035418,120]
[423449143,1780126571000,-500.0,0.00035418,120]
[423449141,1780126571000,-500.0,0.00035418,120]
[423449152,1780126571000,-500.0,0.00035418,120]
[423449137,1780126571000,-500.0,0.00035418,120]
[423449138,1780126571000,-500.0,0.00035418,120]
[423449144,1780126571000,-500.0,0.00035418,120]
[423449154,1780126571000,-500.0,0.00035418,120]
[423449140,1780126571000,-500.0,0.00035418,120]
[423449155,1780126571000,-500.0,0.00035418,120]
[423449172,1780126571000,-500.0,0.00035418,120]
[423449170,1780126571000,-500.0,0.00035418,120]
[423449171,1780126571000,-500.0,0.00035418,120]
[423449168,1780126571000,-500.0,0.00035418,120]
[423449169,1780126571000,-523.5344632,0.00035418,120]
[423449166,1780126571000,-500.0,0.00035418,120]
[423449167,1780126571000,-500.0,0.00035418,120]
[423449163,1780126571000,-500.0,0.00035418,120]
[423449156,1780126571000,-861.6151449,0.00035418,120]
[423449164,1780126571000,-500.0,0.00035418,120]
[423449161,1780126571000,-749.1379702,0.00035418,120]
[423449159,1780126571000,-500.0,0.00035418,120]
[423449162,1780126571000,-500.0,0.00035418,120]
[423449160,1780126571000,-500.0,0.00035418,120]
[423449158,1780126571000,-500.0,0.00035418,120]
[423449157,1780126571000,-461.3678554,0.00035418,120]
[423449165,1780126571000,-500.0,0.00035418,120]
[423449188,1780126572000,-500.0,0.00035418,120]
[423449186,1780126572000,-750.9420073,0.00035418,120]
[423449184,1780126572000,-500.0,0.00035418,120]
[423449185,1780126572000,-500.0,0.00035418,120]
[423449183,1780126572000,-800.0,0.00035418,120]
[423449182,1780126572000,-500.0,0.00035418,120]
[423449180,1780126572000,-800.0,0.00035418,120]
[423449178,1780126572000,-190.4303729,0.00035418,120]
[423449179,1780126572000,-500.0,0.00035418,120]
[423449177,1780126572000,-216.8722082,0.00035418,120]
[423449176,1780126572000,-500.0,0.00035418,120]
[423449175,1780126572000,-500.0,0.00035418,120]
[423449173,1780126572000,-500.0,0.00035418,120]
[423449174,1780126572000,-500.0,0.00035418,120]
[423449187,1780126572000,-800.0,0.00035418,120]
[423449181,1780126572000,-500.0,0.00035418,120]
[423449189,1780126572000,-800.0,0.00035418,120]
[423449190,1780126572000,-500.0,0.00035418,120]
[423449192,1780126572000,-500.0,0.00035418,120]
[423449205,1780126572000,-500.0,0.00035418,120]
[423449206,1780126572000,-800.0,0.00035418,120]
[423449202,1780126572000,-500.0,0.00035418,120]
[423449204,1780126572000,-800.0,0.00035418,120]
[423449198,1780126572000,-500.0,0.00035418,120]
[423449199,1780126572000,-800.0,0.00035418,120]
[423449200,1780126572000,-500.0,0.00035418,120]
[423449203,1780126572000,-800.0,0.00035418,120]
[423449197,1780126572000,-800.0,0.00035418,120]
[423449196,1780126572000,-500.0,0.00035418,120]
[423449194,1780126572000,-500.0,0.00035418,120]
[423449195,1780126572000,-800.0,0.00035418,120]
[423449191,1780126572000,-800.0,0.00035418,120]
[423449193,1780126572000,-800.0,0.00035418,120]
[423449201,1780126572000,-800.0,0.00035418,120]
[423449207,1780126572000,-500.0,0.00035418,120]
[423449216,1780126573000,-800.0,0.00035418,120]
[423449222,1780126573000,-1100.0,0.00035418,120]
[423449221,1780126573000,-800.0,0.00035418,120]
[423449220,1780126573000,-800.0,0.00035418,120]
[423449219,1780126573000,-800.0,0.00035418,120]
[423449218,1780126573000,-800.0,0.00035418,120]
[423449208,1780126573000,-800.0,0.00035418,120]
[423449213,1780126573000,-800.0,0.00035418,120]
[423449214,1780126573000,-800.0,0.00035418,120]
[423449211,1780126573000,-522.457037,0.00035418,120]
[423449212,1780126573000,-800.0,0.00035418,120]
[423449210,1780126573000,-800.0,0.00035418,120]
[423449209,1780126573000,-500.0,0.00035418,120]
[423449223,1780126573000,-1409.114776,0.00035418,120]
[423449215,1780126573000,-800.0,0.00035418,120]
[423449224,1780126573000,-1100.0,0.00035418,120]
[423449217,1780126573000,-800.0,0.00035418,120]
[423449226,1780126573000,-1100.0,0.00035418,120]
[423449225,1780126573000,-1100.0,0.00035418,120]
[423449240,1780126573000,-1100.0,0.00035418,120]
[423449237,1780126573000,-1100.0,0.00035418,120]
[423449239,1780126573000,-1100.0,0.00035418,120]
[423449238,1780126573000,-1100.0,0.00035418,120]
[423449235,1780126573000,-1100.0,0.00035418,120]
[423449233,1780126573000,-1100.0,0.00035418,120]
[423449241,1780126573000,-1100.0,0.00035418,120]
[423449234,1780126573000,-1100.0,0.00035418,120]
[423449232,1780126573000,-1100.0,0.00035418,120]
[423449231,1780126573000,-1100.0,0.00035418,120]
[423449230,1780126573000,-1100.0,0.00035418,120]
[423449228,1780126573000,-1100.0,0.00035418,120]
[423449227,1780126573000,-1100.0,0.00035418,120]
[423449229,1780126573000,-1100.0,0.00035418,120]
[423449236,1780126573000,-1100.0,0.00035418,120]
[423449252,1780126574000,-500.0,0.00035418,120]
[423449253,1780126574000,-250.35,0.00035418,120]
[423449250,1780126574000,-2174.9335052,0.00035418,120]
[423449251,1780126574000,-234.375,0.00035418,120]
[423449249,1780126574000,-1100.0,0.00035418,120]
[423449244,1780126574000,-1100.0,0.00035418,120]
[423449247,1780126574000,-1100.0,0.00035418,120]
[423449246,1780126574000,-1100.0,0.00035418,120]
[423449245,1780126574000,-1100.0,0.00035418,120]
[423449242,1780126574000,-1100.0,0.00035418,120]
[423449254,1780126574000,-693.4354644,0.00035418,120]
[423449248,1780126574000,-1100.0,0.00035418,120]
[423449256,1780126574000,-160.2611009,0.00035418,120]
[423449243,1780126574000,-1100.0,0.00035418,120]
[423449258,1780126574000,-265.625,0.00035418,120]
[423449269,1780126574000,-500.0,0.00035418,120]
[423449266,1780126574000,-500.0,0.00035418,120]
[423449267,1780126574000,-500.0,0.00035418,120]
[423449265,1780126574000,-500.0,0.00035418,120]
[423449264,1780126574000,-500.0,0.00035418,120]
[423449268,1780126574000,-1600.0,0.00035418,120]
[423449262,1780126574000,-500.0,0.00035418,120]
[423449263,1780126574000,-500.0,0.00035418,120]
[423449257,1780126574000,-251.25,0.00035418,120]
[423449255,1780126574000,-265.625,0.00035418,120]
[423449261,1780126574000,-500.0,0.00035418,120]
[423449260,1780126574000,-500.0,0.00035418,120]
[423449259,1780126574000,-500.0,0.00035418,120]
[423449280,1780126575000,-500.0,0.00035418,120]
[423449270,1780126575000,-500.0,0.00035418,120]
[423449273,1780126575000,-500.0,0.00035418,120]
[423449272,1780126575000,-500.0,0.00035418,120]
[423449274,1780126575000,-1600.0,0.00035418,120]
[423449276,1780126575000,-500.0,0.00035418,120]
[423449275,1780126575000,-500.0,0.00035418,120]
[423449277,1780126575000,-1600.0,0.00035418,120]
[423449279,1780126575000,-1600.0,0.00035418,120]
[423449278,1780126575000,-500.0,0.00035418,120]
[423449271,1780126575000,-1600.0,0.00035418,120]
[423449281,1780126575000,-500.0,0.00035418,120]
[423449282,1780126575000,-1600.0,0.00035418,120]
[423449283,1780126575000,-500.0,0.00035418,120]
[423449293,1780126575000,-500.0,0.00035418,120]
[423449294,1780126575000,-1600.0,0.00035418,120]
[423449291,1780126575000,-1600.0,0.00035418,120]
[423449292,1780126575000,-500.0,0.00035418,120]
[423449289,1780126575000,-500.0,0.00035418,120]
[423449288,1780126575000,-1600.0,0.00035418,120]
[423449287,1780126575000,-500.0,0.00035418,120]
[423449285,1780126575000,-1600.0,0.00035418,120]
[423449286,1780126575000,-500.0,0.00035418,120]
[423449284,1780126575000,-500.0,0.00035418,120]
[423449290,1780126575000,-500.0,0.00035418,120]
[423449303,1780126576000,-1600.0,0.00035418,120]
[423449305,1780126576000,-1600.0,0.00035418,120]
[423449307,1780126576000,-500.0,0.00035418,120]
[423449308,1780126576000,-1600.0,0.00035418,120]
[423449304,1780126576000,-500.0,0.00035418,120]
[423449302,1780126576000,-500.0,0.00035418,120]
[423449295,1780126576000,-848.5069637,0.00035418,120]
[423449299,1780126576000,-1600.0,0.00035418,120]
[423449301,1780126576000,-1600.0,0.00035418,120]
[423449296,1780126576000,-500.0,0.00035418,120]
[423449297,1780126576000,-1600.0,0.00035418,120]
[423449298,1780126576000,-500.0,0.00035418,120]
[423449306,1780126576000,-1600.0,0.00035418,120]
[423449300,1780126576000,-500.0,0.00035418,120]
[423449309,1780126576000,-1600.0,0.00035418,120]
[423449321,1780126576000,-1600.0,0.00035418,120]
[423449310,1780126576000,-500.0,0.00035418,120]
[423449322,1780126576000,-1600.0,0.00035418,120]
[423449325,1780126576000,-2746.24,0.00035448,30]
[423449324,1780126576000,-2913.77,0.00035448,30]
[423449323,1780126576000,-2020.1685859,0.00035418,120]
[423449319,1780126576000,-1600.0,0.00035418,120]
[423449320,1780126576000,-1600.0,0.00035418,120]
[423449326,1780126576000,-1000.0,0.00035455,120]
[423449311,1780126576000,-1600.0,0.00035418,120]
[423449317,1780126576000,-1600.0,0.00035418,120]
[423449316,1780126576000,-542.8901591,0.00035418,120]
[423449312,1780126576000,-500.0,0.00035418,120]
[423449313,1780126576000,-1600.0,0.00035418,120]
[423449314,1780126576000,-500.0,0.00035418,120]
[423449315,1780126576000,-1600.0,0.00035418,120]
[423449318,1780126576000,-1600.0,0.00035418,120]
[423449335,1780126577000,-600.0,0.00035616,120]
[423449333,1780126577000,-2000.0,0.000356,120]
[423449332,1780126577000,-1000.0,0.000356,120]
[423449330,1780126577000,-2000.0,0.00035534,30]
[423449328,1780126577000,-1000.0,0.00035455,60]
[423449329,1780126577000,-1248.0,0.000355,120]
[423449337,1780126577000,-1000.0,0.00035616,120]
[423449327,1780126577000,-1000.0,0.00035455,90]
[423449331,1780126577000,-928.82,0.00035562,120]
[423449336,1780126577000,-3524.33431887,0.00035616,30]
[423449334,1780126577000,-847.00905813,0.00035616,60]
[423449338,1780126577000,-1000.0,0.00035616,120]
[423449339,1780126577000,-150.0,0.00035616,30]
[423449349,1780126577000,-1959.97,0.00035666,120]
[423449347,1780126577000,-620.0,0.00035621,120]
[423449345,1780126577000,-600.0,0.00035616,120]
[423449346,1780126577000,-432.65,0.00035616,120]
[423449348,1780126577000,-1015.88585727,0.00035643,120]
[423449343,1780126577000,-600.0,0.00035616,120]
[423449342,1780126577000,-150.0,0.00035616,120]
[423449341,1780126577000,-150.0,0.00035616,60]
[423449340,1780126577000,-150.0,0.00035616,30]
[423449344,1780126577000,-600.0,0.00035616,120]
[423449363,1780126578000,-1775.468,0.000358,120]
[423449356,1780126578000,-1401.0,0.00035672,30]
[423449362,1780126578000,-3049.99,0.0003578,30]
[423449360,1780126578000,-1194.0,0.00035672,30]
[423449359,1780126578000,-2516.0,0.00035672,30]
[423449361,1780126578000,-872.0,0.00035672,30]
[423449358,1780126578000,-2440.0,0.00035672,30]
[423449350,1780126578000,-2684.58,0.0003567,98]
[423449355,1780126578000,-1170.0,0.00035672,30]
[423449353,1780126578000,-873.0,0.0003567,30]
[423449352,1780126578000,-848.0,0.0003567,30]
[423449354,1780126578000,-3265.0,0.0003567,30]
[423449351,1780126578000,-3546.0,0.0003567,30]
[423449364,1780126578000,-1775.468,0.000358,120]
[423449357,1780126578000,-753.0,0.00035672,30]
[423449365,1780126578000,-1775.46,0.000358,120]
[423449374,1780126578000,-10000.0,0.00036,120]
[423449368,1780126578000,-2252.6,0.00035824,30]
[423449366,1780126578000,-940.26,0.000358,120]
[423449382,1780126578000,-455.805784,0.00036081,120]
[423449381,1780126578000,-176.19,0.0003606,120]
[423449380,1780126578000,-928.82,0.00036055,120]
[423449379,1780126578000,-150.0,0.00036,120]
[423449377,1780126578000,-162.0,0.00036,120]
[423449378,1780126578000,-5260.83,0.00036,30]
[423449376,1780126578000,-2000.0,0.00036,120]
[423449383,1780126578000,-1072.6662,0.000361,120]
[423449373,1780126578000,-2500.0,0.00036,37]
[423449372,1780126578000,-330.0,0.00035957,39]
[423449370,1780126578000,-1343.64,0.000359,120]
[423449371,1780126578000,-1047.48591529,0.00035947,30]
[423449369,1780126578000,-4696.8,0.000359,120]
[423449367,1780126578000,-928.82,0.00035808,120]
[423449375,1780126578000,-2844.66,0.00036,30]
[423449396,1780126579000,-72632.1967,0.00036518,30]
[423449398,1780126579000,-206.79450403,0.00036543,120]
[423449395,1780126579000,-1883.91,0.000365,120]
[423449394,1780126579000,-1200.0,0.000365,120]
[423449393,1780126579000,-358.01,0.000365,120]
[423449390,1780126579000,-2684.58,0.0003621,114]
[423449392,1780126579000,-2900.0,0.00036424,60]
[423449387,1780126579000,-2000.0,0.00036164,30]
[423449389,1780126579000,-307.905,0.000362,31]
[423449386,1780126579000,-2980.2,0.00036153,30]
[423449388,1780126579000,-221.06,0.000362,31]
[423449384,1780126579000,-1585.46676,0.000361,120]
[423449385,1780126579000,-1590.83721181,0.00036139,87]
[423449397,1780126579000,-1047.48591529,0.00036526,30]
[423449391,1780126579000,-928.82,0.00036301,120]
[423449399,1780126579000,-928.82,0.00036548,120]
[423449407,1780126579000,-500.0,0.00036639,30]
[423449401,1780126579000,-152.19,0.00036636,30]
[423449415,1780126579000,-500.0,0.00036639,30]
[423449414,1780126579000,-500.0,0.00036639,30]
[423449413,1780126579000,-500.0,0.00036639,30]
[423449410,1780126579000,-500.0,0.00036639,30]
[423449411,1780126579000,-500.0,0.00036639,30]
[423449412,1780126579000,-500.0,0.00036639,30]
[423449408,1780126579000,-500.0,0.00036639,30]
[423449416,1780126579000,-500.0,0.00036639,30]
[423449409,1780126579000,-500.0,0.00036639,30]
[423449417,1780126579000,-500.0,0.00036639,30]
[423449402,1780126579000,-500.0,0.00036639,30]
[423449403,1780126579000,-500.0,0.00036639,30]
[423449400,1780126579000,-1470.0,0.000366,120]
[423449405,1780126579000,-500.0,0.00036639,30]
[423449406,1780126579000,-500.0,0.00036639,30]
[423449404,1780126579000,-500.0,0.00036639,30]
[423449431,1780126580000,-2684.58,0.0003676,120]
[423449432,1780126580000,-2000.0,0.00036795,30]
[423449429,1780126580000,-265.78,0.00036716,30]
[423449428,1780126580000,-500.0,0.00036712,120]
[423449427,1780126580000,-1585.46676,0.000367,120]
[423449426,1780126580000,-391.5,0.00036696,30]
[423449425,1780126580000,-456.69860845,0.00036668,120]
[423449423,1780126580000,-456.62,0.00036639,30]
[423449422,1780126580000,-500.0,0.00036639,30]
[423449420,1780126580000,-500.0,0.00036639,30]
[423449419,1780126580000,-500.0,0.00036639,30]
[423449418,1780126580000,-500.0,0.00036639,30]
[423449430,1780126580000,-176.19,0.00036717,120]
[423449424,1780126580000,-500.0,0.00036641,30]
[423449421,1780126580000,-500.0,0.00036639,30]
[423449433,1780126580000,-928.82,0.00036795,120]
[423449435,1780126580000,-4696.8,0.000369,120]
[423449434,1780126580000,-206.79450401,0.00036848,120]
[423449449,1780126580000,-1000.0,0.00036986,120]
[423449447,1780126580000,-1000.0,0.00036986,120]
[423449446,1780126580000,-1000.0,0.00036986,120]
[423449445,1780126580000,-1000.0,0.00036986,120]
[423449444,1780126580000,-1000.0,0.00036986,120]
[423449443,1780126580000,-1000.0,0.00036986,120]
[423449448,1780126580000,-1000.0,0.00036986,120]
[423449439,1780126580000,-1000.0,0.00036986,120]
[423449441,1780126580000,-1000.0,0.00036986,120]
[423449440,1780126580000,-1000.0,0.00036986,120]
[423449436,1780126580000,-150.980369,0.00036961,31]
[423449438,1780126580000,-1000.0,0.00036986,120]
[423449437,1780126580000,-1000.0,0.00036986,120]
[423449442,1780126580000,-1000.0,0.00036986,120]
[423449456,1780126581000,-1000.0,0.00036986,120]
[423449463,1780126581000,-600.0,0.00036986,120]
[423449462,1780126581000,-1449.42,0.00036986,120]
[423449461,1780126581000,-500.0,0.00036986,120]
[423449460,1780126581000,-782.09404167,0.00036986,120]
[423449459,1780126581000,-1000.0,0.00036986,120]
[423449458,1780126581000,-1000.0,0.00036986,120]
[423449465,1780126581000,-600.0,0.00036986,120]
[423449455,1780126581000,-1000.0,0.00036986,120]
[423449453,1780126581000,-1000.0,0.00036986,120]
[423449454,1780126581000,-1000.0,0.00036986,120]
[423449452,1780126581000,-1000.0,0.00036986,120]
[423449451,1780126581000,-1000.0,0.00036986,120]
[423449450,1780126581000,-1000.0,0.00036986,120]
[423449457,1780126581000,-1000.0,0.00036986,120]
[423449464,1780126581000,-600.0,0.00036986,120]
[423449470,1780126581000,-1612.91828038,0.00037,120]
[423449467,1780126581000,-2844.66,0.00037,30]
[423449482,1780126581000,-150.0,0.00037,120]
[423449481,1780126581000,-3200.0,0.00037,30]
[423449480,1780126581000,-1633.0,0.00037,30]
[423449478,1780126581000,-5260.83,0.00037,30]
[423449479,1780126581000,-242.0,0.00037,30]
[423449476,1780126581000,-500.0,0.00037,120]
[423449477,1780126581000,-2500.0,0.00037,38]
[423449466,1780126581000,-1000.0,0.00036986,120]
[423449475,1780126581000,-162.0,0.00037,120]
[423449473,1780126581000,-180.0,0.00037,120]
[423449483,1780126581000,-199.0,0.00037,120]
[423449471,1780126581000,-658.91941069,0.00037,120]
[423449472,1780126581000,-3205.72291537,0.00037,120]
[423449469,1780126581000,-12010.89,0.00037,120]
[423449468,1780126581000,-12010.894,0.00037,120]
[423449474,1780126581000,-300.0,0.00037,30]
[423449499,1780126582000,-2493.21218903,0.000373,30]
[423449497,1780126582000,-2493.21218905,0.000373,30]
[423449496,1780126582000,-2347.72205158,0.000373,30]
[423449494,1780126582000,-2347.72205159,0.000373,30]
[423449493,1780126582000,-2684.59,0.000373,60]
[423449490,1780126582000,-1449.42,0.00037233,120]
[423449489,1780126582000,-150.0,0.00037212,30]
[423449491,1780126582000,-928.95,0.00037288,120]
[423449488,1780126582000,-305.0039181,0.00037212,120]
[423449498,1780126582000,-2493.21218903,0.000373,30]
[423449487,1780126582000,-10103.58495722,0.0003715,60]
[423449486,1780126582000,-1047.48591529,0.00037105,30]
[423449485,1780126582000,-1450.0,0.000371,120]
[423449484,1780126582000,-928.82,0.00037041,120]
[423449492,1780126582000,-1585.46676,0.000373,120]
[423449500,1780126582000,-161.82,0.00037344,60]
[423449495,1780126582000,-2347.72205158,0.000373,30]
[423449503,1780126582000,-5165.16,0.00037384,120]
[423449516,1780126582000,-771.6446478,0.00037388,120]
[423449517,1780126582000,-211.7676496,0.00037388,120]
[423449515,1780126582000,-261.8598648,0.00037388,120]
[423449513,1780126582000,-234.375,0.00037388,120]
[423449512,1780126582000,-409.2834306,0.00037388,120]
[423449514,1780126582000,-164.1855473,0.00037388,120]
[423449511,1780126582000,-234.375,0.00037388,120]
[423449518,1780126582000,-286.4105849,0.00037388,120]
[423449508,1780126582000,-500.0,0.00037388,120]
[423449510,1780126582000,-189.84375,0.00037388,120]
[423449502,1780126582000,-176.19,0.00037375,120]
[423449504,1780126582000,-200.07,0.00037387,120]
[423449501,1780126582000,-1738.52,0.00037358,120]
[423449506,1780126582000,-234.375,0.00037388,120]
[423449505,1780126582000,-200.07,0.00037387,120]
[423449509,1780126582000,-614.3002121,0.00037388,120]
[423449507,1780126582000,-500.0,0.00037388,120]
[423449532,1780126583000,-500.0,0.00037388,120]
[423449533,1780126583000,-500.0,0.00037388,120]
[423449530,1780126583000,-500.0,0.00037388,120]
[423449531,1780126583000,-500.0,0.00037388,120]
[423449528,1780126583000,-500.0,0.00037388,120]
[423449529,1780126583000,-176.6603972,0.00037388,120]
[423449526,1780126583000,-500.0,0.00037388,120]
[423449527,1780126583000,-500.0,0.00037388,120]
[423449524,1780126583000,-234.375,0.00037388,120]
[423449522,1780126583000,-562.866187,0.00037388,120]
[423449520,1780126583000,-500.0,0.00037388,120]
[423449519,1780126583000,-290.9836436,0.00037388,120]
[423449521,1780126583000,-500.0,0.00037388,120]
[423449534,1780126583000,-500.0,0.00037388,120]
[423449525,1780126583000,-500.0,0.00037388,120]
[423449523,1780126583000,-500.0,0.00037388,120]
[423449535,1780126583000,-627.9791947,0.00037388,120]
[423449537,1780126583000,-234.375,0.00037388,120]
[423449551,1780126583000,-283.8921621,0.00037388,120]
[423449549,1780126583000,-171.8575914,0.00037388,120]
[423449550,1780126583000,-500.0,0.00037388,120]
[423449552,1780126583000,-500.0,0.00037388,120]
[423449548,1780126583000,-272.9601566,0.00037388,120]
[423449546,1780126583000,-762.6490514,0.00037388,120]
[423449547,1780126583000,-500.0,0.00037388,120]
[423449536,1780126583000,-500.0,0.00037388,120]
[423449542,1780126583000,-708.0203937,0.00037388,120]
[423449544,1780126583000,-500.0,0.00037388,120]
[423449545,1780126583000,-500.0,0.00037388,120]
[423449539,1780126583000,-500.0,0.00037388,120]
[423449541,1780126583000,-500.0,0.00037388,120]
[423449540,1780126583000,-500.0,0.00037388,120]
[423449538,1780126583000,-500.0,0.00037388,120]
[423449543,1780126583000,-500.0,0.00037388,120]
[423449568,1780126584000,-500.0,0.00037388,120]
[423449565,1780126584000,-441.3504141,0.00037388,120]
[423449566,1780126584000,-234.375,0.00037388,120]
[423449563,1780126584000,-500.0,0.00037388,120]
[423449564,1780126584000,-500.0,0.00037388,120]
[423449562,1780126584000,-500.0,0.00037388,120]
[423449560,1780126584000,-234.375,0.00037388,120]
[423449559,1780126584000,-500.0,0.00037388,120]
[423449556,1780126584000,-165.5031005,0.00037388,120]
[423449558,1780126584000,-284.0329378,0.00037388,120]
[423449557,1780126584000,-500.0,0.00037388,120]
[423449555,1780126584000,-500.0,0.00037388,120]
[423449553,1780126584000,-500.0,0.00037388,120]
[423449567,1780126584000,-861.6151448,0.00037388,120]
[423449561,1780126584000,-500.0,0.00037388,120]
[423449554,1780126584000,-234.375,0.00037388,120]
[423449571,1780126584000,-500.0,0.00037388,120]
[423449570,1780126584000,-213.8853685,0.00037388,120]
[423449569,1780126584000,-151.8589436,0.00037388,120]
[423449585,1780126584000,-800.0,0.00037388,120]
[423449584,1780126584000,-500.0,0.00037388,120]
[423449583,1780126584000,-500.0,0.00037388,120]
[423449582,1780126584000,-500.0,0.00037388,120]
[423449580,1780126584000,-500.0,0.00037388,120]
[423449581,1780126584000,-800.0,0.00037388,120]
[423449586,1780126584000,-500.0,0.00037388,120]
[423449577,1780126584000,-500.0,0.00037388,120]
[423449579,1780126584000,-176.6067909,0.00037388,120]
[423449575,1780126584000,-800.0,0.00037388,120]
[423449573,1780126584000,-800.0,0.00037388,120]
[423449576,1780126584000,-461.3678554,0.00037388,120]
[423449574,1780126584000,-500.0,0.00037388,120]
[423449572,1780126584000,-662.581661,0.00037388,120]
[423449578,1780126584000,-500.0,0.00037388,120]
[423449600,1780126585000,-500.0,0.00037388,120]
[423449596,1780126585000,-500.0,0.00037388,120]
[423449598,1780126585000,-800.0,0.00037388,120]
[423449597,1780126585000,-500.0,0.00037388,120]
[423449595,1780126585000,-800.0,0.00037388,120]
[423449594,1780126585000,-500.0,0.00037388,120]
[423449591,1780126585000,-500.0,0.00037388,120]
[423449592,1780126585000,-800.0,0.00037388,120]